Cogmind - Beta 13 @@@ ROGUE MODE // 2024.04.17 @ 21:36:22 Player: Jiyva Result: Destroyed by P-80 Master with Gamma Rifle Performance ------------- Evolutions (9) 4500 Regions Visited (16) 3200 Robots Destroyed (128) 640 Value Destroyed (5473) 5473 Prototype IDs (19) 380 Alien Tech Used (0) 0 Bonus (749) 749 TOTAL SCORE: 14942 Bonus ------- High Alert Combat Kills 249 Entered DSFs 500 Cogmind --------- Core Integrity 0/1600 Matter 298/300 Energy 100/100 System Corruption 32% Temperature Cool (0) Movement Core (50) Location -1/Command Parts ------- > --- POWER (2) -------- (None) > --- PROPULSION (5) --- (None) > --- UTILITY (16) ----- Experimental Terrain Scan Processor Advanced Target Analyzer Experimental Target Analyzer Graphene Brace (fused) Improved Focal Shield Advanced System Shield > --- WEAPON (2) ------- (None) > --- INVENTORY (5) ---- Advanced Heavy Siege Treads Advanced Sensor Array Compact Linear Accelerator Advanced Datajack Peak State ------------ > --- POWER ------------ Quantum Reactor Quantum Reactor > --- PROPULSION ------- Advanced Heavy Treads Advanced Heavy Siege Treads Centrium Leg > --- UTILITY ---------- Advanced Power Amplifier Advanced Heat Sink Advanced Visual Processing Unit Advanced Sensor Array Experimental Terrain Scan Processor Advanced Target Analyzer Experimental Target Analyzer Heavy Armor Plating Improved Powered Armor Graphene Brace Advanced Focal Shield Beam Splitter Advanced System Shield Component Analysis Suite Improved System Restoration Module > --- WEAPON ----------- Compact Linear Accelerator Plasma Lance > --- INVENTORY -------- Quantum Reactor Advanced Heavy Treads Recalibrator Advanced Datajack [Rating: 177] Favorites ----------- Power Quantum Reactor Engine Light Angular Momentum Engine Power Core Enhanced Fission Core Reactor Quantum Reactor Propulsion Improved Linear Gravjet Treads Advanced Heavy Treads Leg Centrium Leg Wheel Wheel Hover Unit Improved Linear Gravjet Flight Unit Cesium-ion Thruster Utility Advanced Sensor Array Device Advanced Sensor Array Storage Small Storage Unit Processor Advanced Target Analyzer Hackware System Shield Protection Powered Armor Weapon Plasma Lance Energy Gun Medium Laser Ballistic Gun Railgun Ballistic Cannon Magnetic Acceleration Cannon Launcher Micro-nuke Launcher Impact Weapon Shock Maul Slashing Weapon Power Sword Piercing Weapon Plasma Lance Special Melee Weapon Advanced Datajack Build | -11 -10 -9 -9 -8 -7 -7 -6 -5 -5 -5 -4 -3 -2 -2 -1 -1 ------- Run | Yrd Mat Mat Min Mat Fac DSF Fac Fac Ext Cet Fac Res Res Tes Acc Com Slots Evolved 18 | . . 2 . 2 2 . 2 2 . . 2 2 2 . 2 . Power 1 | . . . . . . . 1 . . . . . . . . . Propulsion 3 | . . . . . 1 . . . . . 1 1 . . . . Utility 14 | . . 2 . 2 1 . 1 2 . . 1 1 2 . 2 . Weapon . | . . . . . . . . . . . . . . . . . Parts Attached 258 | 6 9 7 4 22 1 1 23 10 2 1 9 32 20 33 28 50 Power 36 | 1 1 2 . 2 . . 4 3 . . 2 4 2 2 6 7 Engine 12 | 1 1 2 . 2 . . 3 2 . . . . . . 1 . Core 3 | . . . . . . . 1 1 . . . 1 . . . . Reactor 21 | . . . . . . . . . . . 2 3 2 2 5 7 Propulsion 54 | 2 2 1 . 4 . . 3 1 . . 2 10 6 6 9 8 Treads 8 | . . . . . . . . . . . . . . 1 1 6 Leg 3 | . . . . . . . . . . . . . . . 1 2 Wheel 2 | 2 . . . . . . . . . . . . . . . . Hover 33 | . 1 1 . . . . 3 1 . . 2 10 6 2 7 . Flight 8 | . 1 . . 4 . . . . . . . . . 3 . . Utility 125 | 1 3 2 . 7 . . 10 5 2 1 5 13 12 20 11 33 Device 76 | . 1 1 . 1 . . 7 4 2 . 4 10 9 11 7 19 Storage 1 | 1 . . . . . . . . . . . . . . . . Processor 21 | . . 1 . 4 . . 1 1 . 1 1 2 1 4 1 4 Hackware 5 | . . . . . . . . . . . . 1 . 1 2 1 Protection 22 | . 2 . . 2 . . 2 . . . . . 2 4 1 9 Artifact . | . . . . . . . . . . . . . . . . . Weapon 43 | 2 3 2 4 9 1 1 6 1 . . . 5 . 5 2 2 Energy Gun 5 | 2 2 . . 1 . . . . . . . . . . . . Energy Cannon . | . . . . . . . . . . . . . . . . . Ballistic Gun 2 | . . . 1 . . . . . . . . . . 1 . . Ballistic Cannon 17 | . . . . 6 . . 3 1 . . . 3 . 1 1 2 Launcher 4 | . . 1 1 1 . . . . . . . 1 . . . . Special Weapon . | . . . . . . . . . . . . . . . . . Impact Weapon 5 | . 1 1 2 . . . . . . . . 1 . . . . Slashing Weapon 6 | . . . . 1 1 . 3 . . . . . . 1 . . Piercing Weapon 3 | . . . . . . 1 . . . . . . . 2 . . Special Melee Weapon 1 | . . . . . . . . . . . . . . . 1 . Unidentified Prototypes 6 | . . . . . . . . 2 . . 1 2 . 1 . . Parts Lost 85 | . 3 2 . 7 . . 6 1 1 . 1 7 2 14 22 19 Power 12 | . 1 1 . 2 . . 1 . . . . 1 . 2 3 1 Propulsion 21 | . 1 1 . 3 . . 3 . . . . 2 1 3 4 3 Utility 46 | . . . . 1 . . 2 1 1 . 1 3 . 9 14 14 Weapon 6 | . 1 . . 1 . . . . . . . 1 1 . 1 1 Highest Loss Streak 18 | . 2 1 . 4 . . 2 1 1 . 1 5 1 4 18 9 To Critical Strikes . | . . . . . . . . . . . . . . . . . Average Slot Usage (%) 81 | . 56 83 67 66 . 73 79 83 87 88 89 88 90 87 80 75 Engine 1 | . 6 7 11 4 . . 3 7 . . . . . . . . Core 1 | . . . . . . . 1 1 5 5 4 1 . . . . Reactor 3 | . . . . . . . . . . . 4 6 8 5 5 6 Treads 1 | . . . . . . . . . . . . . . 1 1 6 Hover 9 | . . 18 11 . . . 2 11 11 11 15 19 19 15 14 1 Flight 2 | . 7 2 . 8 . 15 8 . . . . . . . . . Device 24 | . 3 19 22 15 . 15 24 17 31 35 34 29 25 28 24 20 Processor 18 | . . 8 11 26 . 30 25 20 19 16 15 15 21 17 16 17 Hackware 1 | . . . . . . . . . . . . 3 4 . 3 1 Protection 5 | . 5 11 11 5 . . . 10 5 5 3 . 2 6 6 10 Ballistic Cannon 2 | . . . . 3 . . . 4 5 5 5 3 3 . . 3 Impact Weapon 1 | . 2 6 1 . . . . . . . . 3 4 4 2 . Slashing Weapon 1 | . . . . 1 . 7 5 5 5 5 5 . . . . . Piercing Weapon 1 | . . . . . . 4 3 . . . . . . 1 4 3 Naked Turns . | . . . . . . . . . . . . . . . . . Heaviest Build 124 | 12 12 12 8 20 3 5 18 35 36 36 45 50 56 61 71 124 Greatest Support 150 | 26 26 12 6 16 9 9 38 38 38 38 48 52 61 80 80 150 Greatest Overweight (x) 1 | . . 1 1 1 . . . . . . . 1 1 1 . 1 Average Overweight (x) . | . . . . . . . . . . . . . . . . . Largest Inventory Capacity 8 | 8 8 5 5 5 5 5 5 5 5 5 5 5 5 5 5 5 Average Capacity 5 | 6 6 5 5 5 5 5 5 5 5 5 5 5 5 5 5 5 Most Carried 5 | 2 5 5 5 5 4 3 5 5 5 5 5 5 5 5 5 5 Average Carried 4 | 1 3 4 4 3 4 2 4 3 4 5 4 4 4 4 4 4 Final Capacity 8 | 8 5 5 5 5 5 5 5 5 5 5 5 5 5 5 5 5 Final Carried 5 | 2 5 5 5 5 4 3 3 5 5 5 5 5 5 5 5 5 Class Distribution -------------------- 21% | Scavenger-Mutant 18% | Ninja 17% | Scavenger-Ninja 15% | Mutant 13% | Scout 7% | Infiltrator-Ninja 5% | Scavenger-Scout Dominant Class ---------------- Mutant | -10/Materials Scout | -9/Materials Scout | -9/Mines Scavenger-Scout | -8/Materials Scavenger-Scout | -7/Factory Scavenger-Scout | -7/DSF Scout | -6/Factory Mutant | -5/Factory Ninja | -5/Extension Ninja | -5/Cetus Scavenger-Ninja | -4/Factory Scavenger-Ninja | -3/Research Scavenger-Ninja | -2/Research Infiltrator-Ninja | -2/Testing Scavenger-Ninja | -1/Access Scavenger-Mutant | -1/Command Resources | -11 -10 -9 -9 -8 -7 -7 -6 -5 -5 -5 -4 -3 -2 -2 -1 -1 ----------- Run | Yrd Mat Mat Min Mat Fac DSF Fac Fac Ext Cet Fac Res Res Tes Acc Com Matter Collected 3635 | 190 64 98 148 246 . . 538 42 279 . 169 324 140 303 378 716 Remotely 16 | . . . . . . . 16 . . . . . . . . . Salvage Created 5561 | . 64 106 69 178 . . 357 40 487 20 439 868 144 535 512 1742 Parts 318 | . 4 15 5 14 . . 20 1 18 3 21 30 12 17 34 124 Haulers Intercepted 2 | . . . . 1 . . 1 . . . . . . . . . Recyclers Shooed 4 | . . . . . . . . . . . 2 . . 1 . 1 Parts Field Recycled . | . . . . . . . . . . . . . . . . . Retrieved Matter . | . . . . . . . . . . . . . . . . . Parts Self-Destructed . | . . . . . . . . . . . . . . . . . Prevented . | . . . . . . . . . . . . . . . . . Kills | -11 -10 -9 -9 -8 -7 -7 -6 -5 -5 -5 -4 -3 -2 -2 -1 -1 ------- Run | Yrd Mat Mat Min Mat Fac DSF Fac Fac Ext Cet Fac Res Res Tes Acc Com Combat Hostiles Destroyed 88 | . 5 4 5 10 . . 3 1 3 . 2 17 3 5 3 27 Melee 42 | . 2 . 1 . . . . . . . 2 7 3 4 3 20 Guns 3 | . 2 . 1 . . . . . . . . . . . . . Cannons 20 | . . . . 6 . . 3 1 3 . . . . . . 7 AOE 18 | . . 3 3 4 . . . . . . . 8 . . . . Classes Destroyed 11 | . 1 4 1 1 . . 3 . . . . . . . . 1 Worker 9 | . . 1 . . . . 1 . . . 2 2 . . . 3 Builder 6 | . . . . . . . 1 . 1 . 3 . . . 1 . Hauler 2 | . . . . 1 . . 1 . . . . . . . . . Recycler 11 | . . . . . . . 1 . 2 . 2 2 . 2 1 1 Operator 2 | . . 1 . . . . . . . . . . . . 1 . Watcher 10 | . . 2 . 1 . . 1 . . 1 . 2 . . 2 1 Swarmer 40 | . 5 3 4 7 . . . . . . . 13 . . . 8 Grunt 4 | . . . 1 . . . . 1 1 . . 1 . . . . Sentry 12 | . . 1 . 3 . . 1 . 2 . . . . . 1 4 Hunter 2 | . . . . . . . . . . . . . . . . 2 Programmer 30 | . . . . . . . 2 . . . 2 3 3 5 2 13 Best Kill Streak 6 | . 2 4 6 4 . . 3 1 2 1 5 6 2 2 2 4 Combat Bots Only 5 | . 2 4 4 4 . . 1 1 2 . 2 5 2 2 2 4 Max Kills in Single Turn 4 | . 1 3 3 3 . . 1 1 1 1 1 4 1 1 1 1 Gunslinging . | . . . . . . . . . . . . . . . . . Exploded 4 | . . 3 3 3 . . . . . . . 4 . . . . Melee 1 | . 1 . 1 . . . . . . . 1 1 1 1 1 1 Uniques/NPCs Destroyed . | . . . . . . . . . . . . . . . . . Combat | -11 -10 -9 -9 -8 -7 -7 -6 -5 -5 -5 -4 -3 -2 -2 -1 -1 -------- Run | Yrd Mat Mat Min Mat Fac DSF Fac Fac Ext Cet Fac Res Res Tes Acc Com Hostile Shots Fired 1250 | . 59 26 16 65 . . 127 5 16 . 22 76 28 76 290 444 Missed 410 | . 14 9 5 23 . . 65 3 10 . 9 32 7 16 110 107 Damage Taken 17533 | . 371 282 119 709 . . 633 38 321 . 305 987 486 2135 3275 7872 Core 2931 | . 115 94 40 282 . . 188 . 84 . 18 90 92 317 558 1053 Absorbed by Shields 25 | . . . . . . . . . . . . . . . . 25 Reduced by Siege Mode 55 | . . . . . . . . . . . . . . . . 55 Redirected to Shielding 145 | . . 15 4 3 . . 44 12 67 . . . . . . . Ignored by Resistances 619 | . . . . . . . . . . . . 37 . . 481 101 Regen/Repaired (Parts) 229 | . . . . . . . . . . . . . . 229 . . Core Remaining (%) 79 | 100 54 . 66 48 . 100 77 . . 91 98 93 . 71 . . Volleys Fired 152 | . 18 6 4 38 . . 15 5 27 2 7 3 2 1 1 23 Largest 1 | . 1 1 1 1 . . 1 1 1 1 1 1 1 1 1 1 Hottest 70 | . 50 50 33 63 . . 53 53 53 53 53 49 57 66 66 70 Shots Fired 155 | . 18 6 4 38 . . 15 5 27 2 8 3 2 1 1 25 Gun 23 | . 18 1 3 1 . . . . . . . . . . . . Cannon 119 | . . . . 33 . . 15 5 27 2 8 . 2 1 1 25 Launcher 13 | . . 5 1 4 . . . . . . . 3 . . . . Special . | . . . . . . . . . . . . . . . . . Kinetic 122 | . . . 3 33 . . 15 5 27 2 8 . 2 1 1 25 Thermal 20 | . 18 1 . 1 . . . . . . . . . . . . Explosive 13 | . . 5 1 4 . . . . . . . 3 . . . . Electromagnetic . | . . . . . . . . . . . . . . . . . Robot Hit Streak 15 | . 2 4 2 15 . . 5 6 4 1 2 1 . . . 9 Robot Miss Streak 5 | . 4 . 2 3 . . 1 1 5 2 2 3 . . . 2 Penetration Max . | . . . . . . . . . . . . . . . . . Secondary Targets . | . . . . . . . . . . . . . . . . . Shots Hit Robots 308 | . 14 11 4 25 . . 26 4 20 1 22 31 13 25 14 98 Core Hits 135 | . 4 8 5 11 . . 9 2 11 1 8 17 . 4 7 48 Critical Kills 3 | . . . . . . . . . . . . 3 . . . . Critical Parts Destroyed 22 | . 1 1 . . . . . . . . . 10 2 8 . . Critical Strikes 54 | . 1 1 . 3 . . 2 1 . . 2 13 2 8 4 17 Blast 11 | . . . . 3 . . 1 1 . . . . . . . 6 Smash 25 | . 1 1 . . . . . . . . . 13 2 8 . . Sever 3 | . . . . . . . 1 . . . 2 . . . . . Impale 15 | . . . . . . . . . . . . . . . 4 11 Melee Attacks 599 | . 14 10 4 6 . . 63 2 34 9 44 93 31 94 65 130 Impact 219 | . 14 10 4 . . . . . . . . 88 31 68 4 . Slashing 153 | . . . . 6 . . 52 2 34 9 44 5 . 1 . . Piercing 227 | . . . . . . . 11 . . . . . . 25 61 130 Sneak Attacks 32 | . . . . . . . 7 . 3 . 7 4 . 2 5 4 Combat Hostiles 2 | . . . . . . . . . . . 1 . . . 1 . Follow-up Attacks 3 | . . . . . . . 2 . . . . . . 1 . . Damage Inflicted 16099 | . 302 443 297 1450 . . 1192 116 841 29 1185 2867 729 1369 858 4421 Guns 126 | . 90 12 24 . . . . . . . . . . . . . Cannons 2987 | . . . . 1139 . . 367 116 343 29 131 . . . . 862 Explosions 1795 | . . 278 213 276 . . . . . . . 1028 . . . . Melee 11160 | . 212 153 60 35 . . 825 . 498 . 1054 1839 729 1369 858 3528 Ramming 31 | . . . . . . . . . . . . . . . . 31 Kinetic 3011 | . . . 24 1139 . . 367 116 343 29 131 . . . . 862 Thermal 102 | . 90 12 . . . . . . . . . . . . . . Explosive 1795 | . . 278 213 276 . . . . . . . 1028 . . . . Electromagnetic . | . . . . . . . . . . . . . . . . . Impact 4041 | . 212 153 60 . . . . . . . . 1839 729 1048 . . Slashing 2213 | . . . . 35 . . 626 . 498 . 1054 . . . . . Piercing 4906 | . . . . . . . 199 . . . . . . 321 858 3528 Highest Corruption 33 | . . . . . . . 1 . 3 3 3 5 2 33 5 31 Average Corruption 11 | . . . . . . . 1 . 3 3 2 3 1 26 1 11 Corruption Purged 25 | . . . . . . . . . . . . 5 3 7 3 7 Corruption Blocked 20 | . . . . . . . . . . . . . . 20 . . Effects 137 | . . . . . . . 1 . 2 2 1 5 5 50 5 66 Message Errors 39 | . . . . . . . 1 . 1 2 . 2 1 12 3 17 Matter Fused 32 | . . . . . . . . . 1 . . 1 3 13 . 14 Heat Flow Errors 14 | . . . . . . . . . . . . . . 5 . 9 Energy Discharges 16 | . . . . . . . . . . . . 1 . 7 1 7 Parts Rejected 4 | . . . . . . . . . . . . 1 . 1 . 2 Parts Fused 2 | . . . . . . . . . . . . . . 1 . 1 Data Loss (minor) 10 | . . . . . . . . . . . . . . 3 . 7 Data Loss (major) 8 | . . . . . . . . . . . . . 1 4 . 3 Misfires 3 | . . . . . . . . . . . 1 . . . . 2 Alerts 5 | . . . . . . . . . . . . . . 3 1 1 Misdirections 4 | . . . . . . . . . . . . . . 1 . 3 Overload Shots . | . . . . . . . . . . . . . . . . . Overflow Damage 3336 | . 46 60 . 75 . . 111 . 172 . 185 864 304 760 185 574 Projectiles 99 | . . . . 67 . . . . . . . . . . . 32 Explosions 119 | . . 44 . 8 . . . . . . . 67 . . . . Melee 3118 | . 46 16 . . . . 111 . 172 . 185 797 304 760 185 542 Knockbacks 28 | . 1 . . 1 . . . . 1 . 2 9 3 8 . 3 Impact 18 | . 1 . . . . . . . . . . 8 2 6 . 1 Kinetic 6 | . . . . 1 . . . . 1 . 2 . . . . 2 Secondary 4 | . . . . . . . . . . . . 1 1 2 . . Self-Inflicted Damage 210 | . . 30 9 139 . . . . . . . 27 . . . 5 Shots 8 | . . 1 1 5 . . . . . . . 1 . . . . Rammed 7 | . . . . . . . . . . . . . . . . 7 Targets Rammed 7 | . . . . . . . . . . . . . . . . 7 Kicked . | . . . . . . . . . . . . . . . . . Crushed . | . . . . . . . . . . . . . . . . . Highest Temperature 335 | . 76 3 . 78 . . 33 28 5 . 16 98 335 307 . 246 Average Temperature 64 | . 52 3 . 23 . . 15 12 5 . 8 19 116 85 . 85 Received Heat Transfer 720 | . . 84 36 180 . . 114 18 54 . . 9 . . 99 126 Effects 2 | . . . . . . . . . . . . . 1 1 . . Energy Bleed 2 | . . . . . . . . . . . . . 1 1 . . Siege Activations 9 | . . . . . . . . . . . . . . . . 9 Total Turns 146 | . . . . . . . . . . . . . . . . 146 Longest Duration 45 | . . . . . . . . . . . . . . . . 45 Robots Corrupted . | . . . . . . . . . . . . . . . . . Combat Hostiles . | . . . . . . . . . . . . . . . . . Parts Fried 15 | . 1 1 . . . . . . . . . 10 . 3 . . Impact Corruptions 54 | . 2 1 . . . . . . . . . 22 9 20 . . Robots Melted . | . . . . . . . . . . . . . . . . . Combat Hostiles . | . . . . . . . . . . . . . . . . . Parts Melted 1 | . . . . . . . . . . . 1 . . . . . Heat Transferred 296 | . 259 37 . . . . . . . . . . . . . . Parts Sabotaged . | . . . . . . . . . . . . . . . . . Parts Stolen . | . . . . . . . . . . . . . . . . . Parts Stripped . | . . . . . . . . . . . . . . . . . Power Chain Reactions . | . . . . . . . . . . . . . . . . . Alert | -11 -10 -9 -9 -8 -7 -7 -6 -5 -5 -5 -4 -3 -2 -2 -1 -1 ------- Run | Yrd Mat Mat Min Mat Fac DSF Fac Fac Ext Cet Fac Res Res Tes Acc Com Peak Influence 585 | . 133 305 264 585 266 201 244 85 221 61 99 497 495 222 252 556 Initial 279 | . . 55 118 102 266 186 105 37 41 52 33 51 279 177 26 105 Average 179 | . 59 135 228 418 266 188 113 65 103 60 47 240 362 76 80 323 Maximum Alert Level 2 | . . 1 1 2 1 1 1 . 1 . . 2 2 1 1 2 Low Security (%) 62 | 100 100 68 5 6 . 80 83 100 96 100 100 47 . 82 91 21 Level 1 25 | . . 31 94 23 100 19 16 . 3 . . 27 66 17 8 53 Level 2 12 | . . . . 69 . . . . . . . 25 33 . . 25 Level 3 . | . . . . . . . . . . . . . . . . . Level 4 . | . . . . . . . . . . . . . . . . . Level 5 . | . . . . . . . . . . . . . . . . . High Security . | . . . . . . . . . . . . . . . . . Max Security . | . . . . . . . . . . . . . . . . . Squads Dispatched 23 | . . . . 1 . . 2 . . . 3 1 1 3 4 8 Investigation 1 | . . . . . . . . . . . . . . . . 1 Extermination 16 | . . . . . . . 2 . . . 2 1 1 3 2 5 Reinforcement 6 | . . . . 1 . . . . . . 1 . . . 2 2 Assault . | . . . . . . . . . . . . . . . . . Garrison . | . . . . . . . . . . . . . . . . . Intercept . | . . . . . . . . . . . . . . . . . Searches Triggered . | . . . . . . . . . . . . . . . . . Construction Impeded . | . . . . . . . . . . . . . . . . . Haulers Reinforced . | . . . . . . . . . . . . . . . . . Active Scanning Responses . | . . . . . . . . . . . . . . . . . Cargo Convoy Interrupts . | . . . . . . . . . . . . . . . . . Stealth | -11 -10 -9 -9 -8 -7 -7 -6 -5 -5 -5 -4 -3 -2 -2 -1 -1 --------- Run | Yrd Mat Mat Min Mat Fac DSF Fac Fac Ext Cet Fac Res Res Tes Acc Com Distress Signals 18 | . . 1 . 2 . . 2 1 1 . . 4 . . 5 2 Communications Jammed 1 | . . . . . . . . . . . . . 1 . . . Distress Signals 1 | . . . . . . . . . . . . . 1 . . . Times Spotted 226 | . 9 13 6 33 . 1 19 1 12 . 3 32 7 13 31 46 Peak Tracking Total 12 | . 3 6 4 10 . 1 4 1 5 . 2 12 2 3 11 6 Tactical Retreats 32 | . . . 1 6 . 1 4 . 4 . . 4 . . 7 5 Traps | -11 -10 -9 -9 -8 -7 -7 -6 -5 -5 -5 -4 -3 -2 -2 -1 -1 ------- Run | Yrd Mat Mat Min Mat Fac DSF Fac Fac Ext Cet Fac Res Res Tes Acc Com Traps Triggered 9 | . . . . . . 1 2 . 3 . . 1 . . . 2 Indirectly . | . . . . . . . . . . . . . . . . . Trap Hack Attempts . | . . . . . . . . . . . . . . . . . Triggered . | . . . . . . . . . . . . . . . . . Disarmed . | . . . . . . . . . . . . . . . . . Reprogrammed . | . . . . . . . . . . . . . . . . . Reused . | . . . . . . . . . . . . . . . . . Traps Extracted . | . . . . . . . . . . . . . . . . . Installed . | . . . . . . . . . . . . . . . . . Triggered . | . . . . . . . . . . . . . . . . . Machines | -11 -10 -9 -9 -8 -7 -7 -6 -5 -5 -5 -4 -3 -2 -2 -1 -1 ---------- Run | Yrd Mat Mat Min Mat Fac DSF Fac Fac Ext Cet Fac Res Res Tes Acc Com Machines Disabled 19 | . . 2 . 2 . . 1 1 1 . 2 . 4 3 1 2 Max in Single Turn 2 | . . 1 . 2 . . 1 1 1 . 1 . 1 1 1 2 Phase Generator 1 | . . . . . . . . . . . . . . . . 1 Machines Repaired . | . . . . . . . . . . . . . . . . . Machines Dismantled . | . . . . . . . . . . . . . . . . . Machines Sabotaged . | . . . . . . . . . . . . . . . . . Overloaded Fab Kills . | . . . . . . . . . . . . . . . . . Hacking | -11 -10 -9 -9 -8 -7 -7 -6 -5 -5 -5 -4 -3 -2 -2 -1 -1 --------- Run | Yrd Mat Mat Min Mat Fac DSF Fac Fac Ext Cet Fac Res Res Tes Acc Com Machines Accessed 27 | . 3 . . 3 1 . 3 3 4 . 1 . 1 3 5 . Terminals 24 | . 2 . . 3 1 . 3 2 4 . 1 . 1 2 5 . Fabricators . | . . . . . . . . . . . . . . . . . Repair Stations 1 | . . . . . . . . . . . . . . 1 . . Recycling Units 2 | . 1 . . . . . . 1 . . . . . . . . Scanalyzers . | . . . . . . . . . . . . . . . . . Garrison Access . | . . . . . . . . . . . . . . . . . Total Hacks 38 | . 4 . . 4 2 . 5 3 6 . 1 . 1 5 7 . Successful 19 | . 2 . . 3 1 . 2 1 2 . . . 1 5 2 . Failed 19 | . 2 . . 1 1 . 3 2 4 . 1 . . . 5 . Catastrophic 8 | . 2 . . . . . 1 . 1 . . . . . 4 . Database Lockouts . | . . . . . . . . . . . . . . . . . Manual 8 | . 3 . . 3 . . 1 1 . . . . . . . . Terminals 34 | . 3 . . 4 2 . 5 2 6 . 1 . 1 3 7 . Fabricators . | . . . . . . . . . . . . . . . . . Repair Stations 2 | . . . . . . . . . . . . . . 2 . . Recycling Units 2 | . 1 . . . . . . 1 . . . . . . . . Scanalyzers . | . . . . . . . . . . . . . . . . . Garrison Access . | . . . . . . . . . . . . . . . . . Terminal Hacks 14 | . 1 . . 1 1 . 2 1 2 . . . 1 3 2 . Record 2 | . . . . . . . . . . . . . 1 1 . . Robot Analysis 1 | . . . . 1 . . . . . . . . . . . . Open Door 2 | . . . . . . . . 1 . . . . . . 1 . Open DSF 2 | . . . . . 1 . 1 . . . . . . . . . Branch Access Points 3 | . . . . . . . . . 1 . . . . 1 1 . Alert Level 2 | . . . . . . . 1 . . . . . . 1 . . Locate Traps 1 | . . . . . . . . . 1 . . . . . . . Registered Components 1 | . 1 . . . . . . . . . . . . . . . Fabricator Hacks . | . . . . . . . . . . . . . . . . . Repair Station Hacks 2 | . . . . . . . . . . . . . . 2 . . Scan Component 1 | . . . . . . . . . . . . . . 1 . . Repair 1 | . . . . . . . . . . . . . . 1 . . Recycling Unit Hacks 1 | . 1 . . . . . . . . . . . . . . . Report Inventory 1 | . 1 . . . . . . . . . . . . . . . Scanalyzer . | . . . . . . . . . . . . . . . . . Garrison Access Hacks . | . . . . . . . . . . . . . . . . . Unauthorized Hacks 2 | . . . . 2 . . . . . . . . . . . . Terminals 2 | . . . . 2 . . . . . . . . . . . . Disrupt 1 | . . . . 1 . . . . . . . . . . . . Operators 1 | . . . . 1 . . . . . . . . . . . . Fabricators . | . . . . . . . . . . . . . . . . . Repair Stations . | . . . . . . . . . . . . . . . . . Recycling Units . | . . . . . . . . . . . . . . . . . Scanalyzers . | . . . . . . . . . . . . . . . . . Garrison Access . | . . . . . . . . . . . . . . . . . Data Cores Recovered . | . . . . . . . . . . . . . . . . . Used . | . . . . . . . . . . . . . . . . . Hacking Detections 17 | . 1 . . 2 . . 2 2 3 . 1 . . 2 4 . Full Trace Events . | . . . . . . . . . . . . . . . . . Feedback Events . | . . . . . . . . . . . . . . . . . Feedback Blocked . | . . . . . . . . . . . . . . . . . Robot Schematics Acquired . | . . . . . . . . . . . . . . . . . Robots Built . | . . . . . . . . . . . . . . . . . Authchips . | . . . . . . . . . . . . . . . . . Time . | . . . . . . . . . . . . . . . . . Total Robot Build Rating . | . . . . . . . . . . . . . . . . . Part Schematics Acquired . | . . . . . . . . . . . . . . . . . Parts Built . | . . . . . . . . . . . . . . . . . Authchips . | . . . . . . . . . . . . . . . . . Time . | . . . . . . . . . . . . . . . . . Total Part Build Rating . | . . . . . . . . . . . . . . . . . Parts Repaired 1 | . . . . . . . . . . . . . . 1 . . Time 44 | . . . . . . . . . . . . . . 44 . . Parts Recycled . | . . . . . . . . . . . . . . . . . Recycled Matter . | . . . . . . . . . . . . . . . . . Retrieved Matter . | . . . . . . . . . . . . . . . . . Retrieved Components . | . . . . . . . . . . . . . . . . . Parts Scanalyzed . | . . . . . . . . . . . . . . . . . Part Schematics Acquired . | . . . . . . . . . . . . . . . . . Parts Damaged . | . . . . . . . . . . . . . . . . . Bothacking | -11 -10 -9 -9 -8 -7 -7 -6 -5 -5 -5 -4 -3 -2 -2 -1 -1 ------------ Run | Yrd Mat Mat Min Mat Fac DSF Fac Fac Ext Cet Fac Res Res Tes Acc Com Used RIF Installer . | . . . . . . . . . . . . . . . . . Robots Hacked . | . . . . . . . . . . . . . . . . . Non-combat . | . . . . . . . . . . . . . . . . . Combat . | . . . . . . . . . . . . . . . . . Robot Hacks Applied . | . . . . . . . . . . . . . . . . . Relay Couplers Released . | . . . . . . . . . . . . . . . . . Fabnet Peak Effective % . | . . . . . . . . . . . . . . . . . Robots Rewired 1 | . . . . . . . . . . . 1 . . . . . Allies Hacked . | . . . . . . . . . . . . . . . . . Hacks Repelled . | . . . . . . . . . . . . . . . . . Allies | -11 -10 -9 -9 -8 -7 -7 -6 -5 -5 -5 -4 -3 -2 -2 -1 -1 -------- Run | Yrd Mat Mat Min Mat Fac DSF Fac Fac Ext Cet Fac Res Res Tes Acc Com Total Allies 1 | . . . . . . . . . . . 1 . . . . . Largest Group 1 | . . . . . . . . . . . 1 . . . . . Highest-Rated Group 56 | . . . . . . . . . . . 56 . . . . . Highest-Rated Ally 56 | . . . . . . . . . . . 56 . . . . . Total Orders 14 | . . . . . . . . 2 . . 3 1 2 1 4 1 STAY 2 | . . . . . . . . . . . 2 . . . . . FOLLOW 2 | . . . . . . . . . . . 1 . . . 1 . EXPLORE 7 | . . . . . . . . 1 . . . 1 1 1 2 1 RETURN 3 | . . . . . . . . 1 . . . . 1 . 1 . Ally Attacks . | . . . . . . . . . . . . . . . . . Total Damage . | . . . . . . . . . . . . . . . . . Kills . | . . . . . . . . . . . . . . . . . Allies Corrupted . | . . . . . . . . . . . . . . . . . Allies Melted . | . . . . . . . . . . . . . . . . . Intel | -11 -10 -9 -9 -8 -7 -7 -6 -5 -5 -5 -4 -3 -2 -2 -1 -1 ------- Run | Yrd Mat Mat Min Mat Fac DSF Fac Fac Ext Cet Fac Res Res Tes Acc Com Robot Analysis Total 1 | . . . . 1 . . . . . . . . . . . . Derelict Logs Recovered 1 | . . . 1 . . . . . . . . . . . . . Drone Launches 12 | . . . . . . . . 3 . . . 1 3 1 2 2 Drone Recoveries 10 | . . . . . . . . 3 . . . 1 3 1 1 1 Exploration | -11 -10 -9 -9 -8 -7 -7 -6 -5 -5 -5 -4 -3 -2 -2 -1 -1 ------------- Run | Yrd Mat Mat Min Mat Fac DSF Fac Fac Ext Cet Fac Res Res Tes Acc Com Turns Passed 10271 | 57 291 173 201 591 2 31 1292 215 485 205 767 1006 419 1519 1028 1989 Spaces Moved 10018 | 54 368 214 224 942 3 30 1609 311 562 124 910 1223 450 1032 918 1044 Core 652 | 5 . . . 477 . . 3 . . . . . . . . 167 Treads 770 | . . . . . . . . . . . . . . 3 28 739 Legs . | . . . . . . . . . . . . . . . . . Wheels 142 | 49 93 . . . . . . . . . . . . . . . Hover 6593 | . . 136 224 46 . . 550 311 562 124 910 1223 450 1029 890 138 Flight 1861 | . 275 78 . 419 3 30 1056 . . . . . . . . . Fastest Speed 32 | 50 40 40 60 32 34 34 34 51 51 51 42 35 36 46 48 50 Average Speed 59 | 86 52 51 60 42 34 34 42 52 51 51 44 39 43 73 77 127 Slowest Speed 225 | 90 90 120 120 112 34 34 60 56 51 51 48 100 108 160 160 225 Overloaded Moves . | . . . . . . . . . . . . . . . . . Propulsion Burnouts . | . . . . . . . . . . . . . . . . . Robots Hopped 2 | . 1 . . 1 . . . . . . . . . . . . Cave-ins Triggered 5 | . . . . . . . . . 1 . . . . 3 1 . Exploration Rate (%) 34 | 5 61 24 51 57 . 44 34 8 59 22 14 27 12 83 21 31 Regions Visited 16 Branch Regions 5 Pre-discovered Areas . | . . . . . . . . . . . . . . . . . Known Exits Taken 13 | . . 1 1 1 1 . 1 1 1 1 1 1 1 1 1 . Unknown Exits Taken 2 | 1 1 . . . . . . . . . . . . . . . Scrap Searched 2 | . . . 2 . . . . . . . . . . . . . Spaces Dug 274 | . . . . 9 . . 42 2 24 9 23 51 13 54 36 11 Terrain Destroyed 534 | . . 32 12 86 . . 43 2 31 9 24 104 13 54 36 88 Melee 270 | . . . . 5 . . 42 2 24 9 23 51 13 54 36 11 Projectile 27 | . . . . 15 . . 1 . 7 . 1 . . . . 3 AOE 237 | . . 32 12 66 . . . . . . . 53 . . . 74 Terrain Rammed . | . . . . . . . . . . . . . . . . . Walls Destroyed . | . . . . . . . . . . . . . . . . . Machines Disabled . | . . . . . . . . . . . . . . . . . Actions | -11 -10 -9 -9 -8 -7 -7 -6 -5 -5 -5 -4 -3 -2 -2 -1 -1 --------- Run | Yrd Mat Mat Min Mat Fac DSF Fac Fac Ext Cet Fac Res Res Tes Acc Com Total 13119 | 61 421 253 279 1071 3 50 2113 353 682 249 1204 1558 607 1620 1131 1464 Wait 1774 | . 4 10 37 34 . . 378 20 13 114 212 187 86 421 101 157 Move 9995 | 53 365 213 223 939 2 29 1608 310 560 123 909 1222 449 1029 917 1044 Hop 2 | . 1 . . 1 . . . . . . . . . . . . Pick Up 82 | 2 2 2 2 10 . 1 13 1 3 . 4 6 4 16 5 11 Fast Attach 155 | 6 7 4 . 9 . 1 12 6 2 . 4 20 12 22 18 32 Attach 63 | . 1 2 3 13 1 . 5 3 . . 3 7 2 8 5 10 Detach 45 | . 4 2 3 10 . . 2 3 . . 2 3 2 4 6 4 Swap 40 | . 1 1 1 . . . 6 1 . 1 2 5 6 3 5 8 Drop 142 | . 4 3 2 11 . 1 19 2 3 . 8 12 13 25 12 27 Fire 152 | . 18 6 4 38 . . 15 5 27 2 7 3 2 1 1 23 Melee 582 | . 14 10 4 6 . . 55 2 34 9 44 93 31 89 61 130 Ram 3 | . . . . . . . . . . . . . . . . 3 Kick . | . . . . . . . . . . . . . . . . . Crush 4 | . . . . . . . . . . . . . . . . 4 Escape Stasis 71 | . . . . . . 18 . . 40 . . . . 2 . 11 Rewire 9 | . . . . . . . . . . . 9 . . . . . Trap . | . . . . . . . . . . . . . . . . . Miscellaneous . | . . . . . . . . . . . . . . . . . Route ------- -11/Scrapyard -10/Materials (discovered 3 exits: *Mat x2 / [*Min]) -9/Materials -9/Mines (discovered 2 exits: *Mat x2) -8/Materials (discovered 2 exits: *Fac x2) -7/Factory -7/DSF -6/Factory -5/Factory (discovered 2 exits: [*Upp] / *Ext) -5/Extension (discovered 2 exits: *Fac / *Cet) -5/Cetus -4/Factory (discovered 2 exits: *Res / *Upp) -3/Research -2/Research -2/Testing -1/Access -1/Command History --------- Turn | Location | Event 21 | -11/Scrapyard | Discovered new exit (range 15) 58 | -11/Scrapyard | Entered Materials 236 | -10/Materials | Discovered new exit (range 8) 268 | -10/Materials | Discovered new exit (range 15) 312 | -10/Materials | Build established: Mutant 342 | -10/Materials | Discovered new exit (range 16) 349 | -10/Materials | Entered another Materials area 349 | -9/Materials | Evolved 2 slots: Utility x2 519 | -9/Materials | Discovered new exit (range 6) 521 | -9/Materials | Identified exit to Mines 522 | -9/Materials | Entered Mines 701 | -9/Mines | Received a Rocket Launcher from a helpful Derelict 702 | -9/Mines | Learned Materials trap positions 704 | -9/Mines | Discovered new exit (range 9) 715 | -9/Mines | Discovered new exit (range 7) 723 | -9/Mines | Identified exit to Materials 723 | -9/Mines | Entered Materials 723 | -8/Materials | Evolved 2 slots: Utility x2 724 | -8/Materials | Loaded intel: 23 trap records 792 | -8/Materials | Lost 4 parts (1p1n1u1w) 1085 | -8/Materials | Discovered new exit (range 3) 1086 | -8/Materials | Identified exit to Factory 1238 | -8/Materials | Core integrity fell below 50% 1285 | -8/Materials | Discovered exit to Factory (range 18) 1314 | -8/Materials | Entered Factory 1314 | -7/Factory | Evolved 2 slots: Propulsion x1, Utility x1 1316 | -7/Factory | Identified exit to DSF 1316 | -7/Factory | Entered DSF 1326 | -7/DSF | Discovered new exit (range 11) 1342 | -7/DSF | Additional patrols routed to DSF 1347 | -7/DSF | Identified exit to Factory 1347 | -7/DSF | Entered Factory 1347 | -6/Factory | Evolved 2 slots: Power x1, Utility x1 1899 | -6/Factory | Build established: Scout 2445 | -6/Factory | Discovered new exit (range 22) 2460 | -6/Factory | Identified exit to Factory 2509 | -6/Factory | Spotted B-75 Beast 2639 | -6/Factory | Entered another Factory area 2639 | -5/Factory | Evolved 2 slots: Utility x2 2709 | -5/Factory | Discovered new exit (range 6) 2850 | -5/Factory | Discovered new exit (range 10) 2854 | -5/Factory | Identified exit to Extension 2854 | -5/Factory | Entered Extension 2932 | -5/Extension | Identified exit to Cetus 3074 | -5/Extension | Spotted B-75 Beast 3145 | -5/Extension | Build established: Ninja 3263 | -5/Extension | Crushed by falling debris 3329 | -5/Extension | Discovered new exit (range 10) 3337 | -5/Extension | Identified exit to Factory 3339 | -5/Extension | Entered Cetus 3352 | -5/Cetus | Spotted Cetus Guard 3352 | -5/Cetus | Spotted Cetus Guard 3352 | -5/Cetus | Spotted Cetus Guard 3352 | -5/Cetus | Spotted Cetus Guard 3384 | -5/Cetus | Discovered exit to Factory (range 21) 3544 | -5/Cetus | Entered Factory 3544 | -4/Factory | Evolved 2 slots: Propulsion x1, Utility x1 3551 | -4/Factory | Discovered new exit (range 15) 3579 | -4/Factory | Identified exit to Upper Caves 3852 | -4/Factory | Build established: Scavenger-Ninja 4046 | -4/Factory | Found Prototype Processor 4046 | -4/Factory | Identified Exp. Signal Interpreter 4297 | -4/Factory | Discovered new exit (range 14) 4303 | -4/Factory | Identified exit to Research 4311 | -4/Factory | Entered Research 4311 | -3/Research | Evolved 2 slots: Propulsion x1, Utility x1 4455 | -3/Research | Build established: Ninja 4997 | -3/Research | Lost 5 parts (1p2n1u1w) 5057 | -3/Research | Build established: Scavenger-Ninja 5281 | -3/Research | Discovered new exit (range 7) 5287 | -3/Research | Identified exit to Research 5317 | -3/Research | Entered another Research area 5317 | -2/Research | Evolved 2 slots: Utility x2 5516 | -2/Research | Found Adv. Force Booster 5524 | -2/Research | Found Prototype Processor 5565 | -2/Research | Identified Exp. Terrain Scan Processor 5587 | -2/Research | Found Prototype Device 5604 | -2/Research | Identified Exp. Actuator Array 5625 | -2/Research | Found Heavy Servo Lattice 5714 | -2/Research | Discovered new exit (range 13) 5735 | -2/Research | Identified exit to Testing 5736 | -2/Research | Entered Testing 5885 | -2/Testing | Build established: Infiltrator-Ninja 6128 | -2/Testing | Crushed by falling debris 6129 | -2/Testing | System corruption reached 10% 6172 | -2/Testing | Crushed by falling debris 6203 | -2/Testing | Lost 3 parts (1n2u) 6351 | -2/Testing | Lost 4 parts (1p1n2u) 6441 | -2/Testing | Found Prototype Device 6455 | -2/Testing | Identified Beam Splitter 6508 | -2/Testing | Found Prototype Device 6526 | -2/Testing | Found Prototype Processor 6533 | -2/Testing | Identified Exp. Core Analyzer 6566 | -2/Testing | Identified Exp. Transmission Jammer 6634 | -2/Testing | Crushed by falling debris 6780 | -2/Testing | System corruption reached 30% 6982 | -2/Testing | Found Prototype Hackware 6982 | -2/Testing | Identified System Mapper 7068 | -2/Testing | Discovered new exit (range 8) 7104 | -2/Testing | Identified exit to Access 7137 | -2/Testing | Build established: Scavenger-Mutant 7225 | -2/Testing | Repaired Lyr. Light Armor Plating 7255 | -2/Testing | Entered Access 7255 | -1/Access | Evolved 2 slots: Utility x2 7424 | -1/Access | Identified exit to Command 7892 | -1/Access | Build established: Scavenger-Ninja 7920 | -1/Access | Found Unknown Device 7920 | -1/Access | Identified Quantum Capacitor 8021 | -1/Access | Spotted B-99 Colossus 8022 | -1/Access | Spotted B-99 Colossus 8075 | -1/Access | Crushed by falling debris 8106 | -1/Access | Lost 3 parts (3u) 8113 | -1/Access | Spotted B-99 Colossus 8117 | -1/Access | Spotted B-99 Colossus 8210 | -1/Access | Lost 18 parts (3p4n10u1w) 8283 | -1/Access | Entered Command 8453 | -1/Command | Build established: Mutant 8626 | -1/Command | Found Powered Armor 8629 | -1/Command | Found Powered Armor 8632 | -1/Command | Found Powered Armor 8635 | -1/Command | Found Powered Armor 8646 | -1/Command | Found Powered Armor 8649 | -1/Command | Found Powered Armor 8788 | -1/Command | Build established: Scavenger-Mutant 9081 | -1/Command | System corruption reached 10% 9345 | -1/Command | Found Prototype Processor 9350 | -1/Command | Identified Exp. Target Analyzer 9368 | -1/Command | Spotted B-99 Colossus 9531 | -1/Command | Found Imp. Powered Armor 9637 | -1/Command | Found Beam Splitter 9810 | -1/Command | Phase Generator disabled 9918 | -1/Command | Core integrity fell below 50% 10149 | -1/Command | Build established: Mutant 10174 | -1/Command | System corruption reached 30% 10195 | -1/Command | Lost 9 parts (1p2n5u1w) 10226 | -1/Command | Core integrity fell below 20% 10272 | -1/Command | Destroyed by P-80 Master with Gamma Rifle Last Messages --------------- 10191_ Field strength at 34. 10192_ Field strength at 28. 10193_ Field strength at 22. 10194_ Field strength at 3. 10195_ Stasis field depleted. 10196_ Centrium Leg destroyed. 10203_ G4QKC/OOFTHIYSHIF861XNZFM%1CYBRS#TW 10223_ Slug penetrates Wall. 10225_ Acquired 9 matter. 10227_ Penetrated by Slug. 10227_ Knocked back. 10232_ Acquired 3 matter. 10234_ FUGYGWK TPKNCO5JSJXR>TA7UQ=P&Y I CI